[Event "Chigorin Memorial 2019"]
[Site "Saint Petersburg"]
[Date "2019.10.13"]
[Round "9.10"]
[White "Svetushkin, Dmitry"]
[Black "Khlebovich, Alexander"]
[Result "1-0"]
[ECO "B52"]
[WhiteElo "2534"]
[BlackElo "2398"]
[Annotator "ChessBase"]
[PlyCount "85"]
[EventDate "2019.10.05"]
[EventType "swiss"]
[EventCountry "RUS"]
[SourceTitle "playchess.com"]
[Source "ChessBase"]
[SourceQuality "1"]
[TimeControl "5400+30"]

1. e4 {[%emt 0:00:23]} c5 {[%emt 0:00:00]} 2. Nf3 {[%emt 0:00:19]} d6 {[%emt 0:00:00]} 3. Bb5+ {[%emt 0:00:06]} Bd7 {[%emt 0:00:09]} 4. Bxd7+ {[%emt 0:00:09]} Qxd7 {[%emt 0:00:09]} 5. O-O {[%emt 0:00:08]} Nf6 {[%emt 0:00:20]} 6. d4 {[%emt 0:00:05]} cxd4 {[%emt 0:01:32]} 7. Qxd4 {[%emt 0:00:08]} Nc6 {[%emt 0:00:13]} 8. Qd3 {[%emt 0:00:08]} g6 {[%emt 0:01:33]} 9. c4 {[%emt 0:00:37]} Bg7 {[%emt 0:00:44]} 10. Nc3 {[%emt 0:00:10]} O-O {[%emt 0:01:09]} 11. h3 {[%emt 0:00:06]} Rac8 {[%emt 0:04:20]} 12. Rb1 {[%emt 0:03:54]} Qe6 {[%emt 0:12:15]} 13. b3 {[%emt 0:06:24]} Nd7 {[%emt 0:03:55]} 14. Re1 {[%emt 0:11:43]} Nc5 {[%emt 0:09:33]} 15. Qd2 {[%emt 0:03:24]} Nb4 {[%emt 0:07:29]} 16. Ba3 {[%emt 0:03:54]} Nbd3 {[%emt 0:00:47]} 17. Re2 {[%emt 0:00:48]} Nf4 18. Qxf4 {[%emt 0:02:00]} Bxc3 {[%emt 0:04:52]} 19. Qe3 {[%emt 0:03:48]} Bg7 {[%emt 0:01:10]} 20. e5 {[%emt 0:02:04]} Rfe8 {[%emt 0:02:08]} 21. Rd1 {[%emt 0:01:56]} Bf8 {[%emt 0:01:45]} 22. Rd5 {[%emt 0:06:04]} Rcd8 {[%emt 0:16:57]} 23. Ng5 {[%emt 0:19:02]} Qc8 {[%emt 0:00:11]} 24. Bxc5 {[%emt 0:07:30]} dxc5 {[%emt 0:00:33]} 25. Rxc5 {[%emt 0:00:35]} Rd1+ {[%emt 0:00:38]} 26. Kh2 {[%emt 0:00:05]} Qb8 {[%emt 0:10:13]} 27. Qf4 {[%emt 0:02:47]} f6 {[%emt 0:00:24]} 28. Ne6 {[%emt 0:00:31]} Rd7 {[%emt 0:03:29]} 29. g3 {[%emt 0:03:25]} b6 {[%emt 0:01:10]} 30. Rd5 {[%emt 0:00:29]} Rxd5 {[%emt 0:00:14]} 31. cxd5 {[%emt 0:00:05]} fxe5 {[%emt 0:00:36]} 32. Rxe5 {[%emt 0:00:25]} Bh6 {[%emt 0:00:55]} 33. Qe4 {[%emt 0:01:56]} Qd6 {[%emt 0:00:54]} 34. h4 {[%emt 0:01:10]} Qa3 {[%emt 0:03:18]} 35. h5 {[%emt 0:02:12]} Qxa2 {[%emt 0:03:22]} 36. Kg2 {[%emt 0:02:37]} Rc8 {[%emt 0:00:04]} 37. hxg6 {[%emt 0:01:17]} Qc2 {[%emt 0:00:05]} 38. gxh7+ {[%emt 0:00:34]} Kh8 {[%emt 0:00:12]} 39. Qg4 {[%emt 0:01:59]} Qc3 {[%emt 0:02:26]} 40. Rf5 {[%emt 0:01:10]} Bg7 {[%emt 0:02:34]} 41. Rg5 {[%emt 0:00:51]} Qd3 {[%emt 0:00:41]} 42. Rxg7 {[%emt 0:00:54]} Qxd5+ {[%emt 0:00:03]} 43. Kh2 {[%emt 0:13:38]} 1-0